Cogmind - Beta 13 @@@ ROGUE MODE // 2024.05.24 @ 23:04:34 Player: Toa of Guts Result: Destroyed by AG-43587 with Assembled Focal Cannon Performance ------------- Evolutions (4) 2000 Regions Visited (17) 3400 Robots Destroyed (157) 785 Value Destroyed (4841) 4841 Prototype IDs (48) 960 Alien Tech Used (0) 0 Bonus (2813) 2813 TOTAL SCORE: 14799 Bonus ------- Follower Combat Kills 213 Aligned with FarCom 300 Met Data Miner 300 Destroyed Z-Imprinter 1000 Triggered Deep Caves Wall 500 Exposed GOLEM Chamber 500 Cogmind --------- Core Integrity 0/850 Matter 122/300 Energy 32/100 System Corruption 0% Temperature Cool (18) Movement Core (50) Location -6/Deep Caves Parts ------- > --- POWER (1) -------- (None) > --- PROPULSION (4) --- (None) > --- UTILITY (6) ------ (None) > --- WEAPON (4) ------- (None) > --- INVENTORY (5) ---- Improved Trap Extractor (4/6 Dirty Bomb) Zionite Laser-S Molecular Deconstructor Makeshift Axe Peak State ------------ > --- POWER ------------ Zionite Light DM Reactor > --- PROPULSION ------- Zionite Composite Leg I Zionite Composite Leg I Armored Huge Wheel > --- UTILITY ---------- High-capacity Storage Unit Enhanced Optical Array Advanced Targeting Computer Improved Heavy Armor Plating Hardlight Generator > --- WEAPON ----------- AWS/Thermal Improved Grenade Launcher RU-N14's Throwing Claymores > --- INVENTORY -------- Fission Core Light Antimatter Reactor Improved Medium Treads Improved Medium Treads Improved Medium Treads Matter Compressor Zionite Weapon Casing Makeshift Light Armor Plating Layered Medium Armor Plating High-powered Tractor Beam Improved Trap Extractor Hacking Drone Bay Zionite Laser-S Gauss Rifle Rocket Array RU-N14's Throwing Claymores RU-N14's Throwing Claymores Molecular Deconstructor Makeshift Axe [Rating: 87] Favorites ----------- Power Improved Deuterium Engine Engine Improved Deuterium Engine Power Core Fission Core Reactor Light Antimatter Reactor Propulsion Light Treads Treads Light Treads Leg Zionite Composite Leg I Wheel Armored Huge Wheel Utility Improved Medium Armor Plating Device Seismic Detector Storage High-capacity Storage Unit Processor Enhanced Optical Array Protection Improved Medium Armor Plating Weapon Heavy Assault Rifle Energy Gun Medium Laser Ballistic Gun Heavy Assault Rifle Launcher Rocket Launcher Special Weapon RU-N14's Throwing Claymores Impact Weapon Power Maul Slashing Weapon Makeshift Axe Build | -11 -10 -10 -9 -9 -9 -8 -8 -7 -7 -7 -7 -6 -6 -6 -6 -6 -6 ------- Run | Yrd Mat Min Mat Min Exi Min Mat Fac Low Low Dat Pro Fac Low Low Zio Dee Slots Evolved 8 | . . . 2 . . . 2 2 . . . . 2 . . . . Power . | . . . . . . . . . . . . . . . . . . Propulsion 2 | . . . . . . . 1 1 . . . . . . . . . Utility 4 | . . . . . . . 1 1 . . . . 2 . . . . Weapon 2 | . . . 2 . . . . . . . . . . . . . . Parts Attached 180 | 6 14 3 22 6 . . 24 30 2 5 . 4 21 10 4 10 19 Power 11 | 1 1 . 2 . . . 2 1 . . . . 1 . . . 3 Engine 7 | 1 1 . 2 . . . 2 1 . . . . . . . . . Core 1 | . . . . . . . . . . . . . . . . . 1 Reactor 3 | . . . . . . . . . . . . . 1 . . . 2 Propulsion 30 | 2 1 1 5 1 . . 6 5 . 2 . . 1 . . . 6 Treads 20 | . 1 1 4 1 . . 3 4 . 2 . . 1 . . . 3 Leg 2 | . . . . . . . . . . . . . . . . . 2 Wheel 8 | 2 . . 1 . . . 3 1 . . . . . . . . 1 Hover . | . . . . . . . . . . . . . . . . . . Flight . | . . . . . . . . . . . . . . . . . . Utility 45 | 1 4 . 2 . . . 5 7 . . . 3 12 3 . 4 4 Device 17 | . 2 . 1 . . . 1 4 . . . 1 4 2 . 1 1 Storage 3 | 1 2 . . . . . . . . . . . . . . . . Processor 2 | . . . . . . . . . . . . . 1 . . 1 . Hackware . | . . . . . . . . . . . . . . . . . . Protection 23 | . . . 1 . . . 4 3 . . . 2 7 1 . 2 3 Artifact . | . . . . . . . . . . . . . . . . . . Weapon 94 | 2 8 2 13 5 . . 11 17 2 3 . 1 7 7 4 6 6 Energy Gun 13 | 2 6 1 2 . . . . . . . . . . . . 1 1 Energy Cannon . | . . . . . . . . . . . . . . . . . . Ballistic Gun 41 | . . . 8 4 . . 7 7 . 1 . 1 6 4 3 . . Ballistic Cannon . | . . . . . . . . . . . . . . . . . . Launcher 18 | . 2 1 3 1 . . 1 2 1 1 . . 1 . 1 3 1 Special Weapon 7 | . . . . . . . . . . . . . . 1 . 2 4 Impact Weapon 1 | . . . . . . . . 1 . . . . . . . . . Slashing Weapon 14 | . . . . . . . 3 7 1 1 . . . 2 . . . Piercing Weapon . | . . . . . . . . . . . . . . . . . . Special Melee Weapon . | . . . . . . . . . . . . . . . . . . Unidentified Prototypes 7 | . . . . . . . . . . . . . . 1 . 1 5 Parts Lost 26 | . 1 1 1 1 . . 1 3 . 1 . . 2 . 1 . 14 Power 2 | . . . . . . . . . . . . . . . . . 2 Propulsion 11 | . 1 1 . . . . 1 2 . . . . . . . . 6 Utility 7 | . . . . . . . . 1 . 1 . . 1 . . . 4 Weapon 6 | . . . 1 1 . . . . . . . . 1 . 1 . 2 Highest Loss Streak 13 | . 1 1 1 1 . . 1 2 . 1 . . 2 . 1 . 13 To Critical Strikes . | . . . . . . . . . . . . . . . . . . Average Slot Usage (%) 94 | . 99 100 96 99 100 100 100 98 92 90 84 91 91 92 92 88 78 Engine 6 | . 14 14 11 11 11 11 9 7 7 7 7 7 . . . . . Reactor 1 | . . . . . . . . . . . . . 5 6 6 6 5 Treads 16 | . 9 20 20 11 11 11 18 27 15 15 15 15 13 13 13 13 6 Wheel 6 | . 18 7 1 11 11 11 8 1 7 7 7 7 6 6 6 6 5 Device 6 | . 13 14 10 . . . 1 7 7 5 . . 5 13 13 9 5 Storage 8 | . 14 14 11 11 11 11 9 7 7 7 7 7 6 6 6 6 6 Processor 2 | . . . . . . . . . . . . . 5 6 6 9 13 Protection 12 | . . . . 11 11 11 16 14 15 15 15 22 20 13 13 11 6 Energy Gun 3 | . 27 26 10 . . . . . . . . . . . . 2 6 Ballistic Gun 21 | . . . 30 38 44 44 32 26 18 16 15 15 25 23 24 16 1 Launcher 2 | . . 1 . 5 . . 1 . 4 5 7 7 . . . 2 5 Slashing Weapon 2 | . . . . . . . 1 2 6 7 7 7 . 2 . . . Naked Turns 3 | . . . . . . . . . . . . . . . . . 3 Heaviest Build 94 | 13 50 52 65 66 65 65 74 78 78 81 80 88 90 89 86 91 94 Greatest Support 80 | 20 20 40 40 12 12 12 60 80 28 40 28 28 28 28 28 28 60 Greatest Overweight (x) 7 | . 4 5 5 5 5 5 7 7 2 2 2 3 3 3 3 3 3 Average Overweight (x) 2 | . 2 3 1 5 5 5 6 . 2 1 2 2 2 2 2 2 2 Largest Inventory Capacity 20 | 8 20 20 20 20 20 20 20 20 20 20 20 20 20 20 20 20 20 Average Capacity 19 | 6 16 20 20 20 20 20 20 20 20 20 20 20 20 20 20 20 19 Most Carried 20 | 6 20 20 20 20 20 20 20 20 20 20 20 20 20 20 20 20 20 Average Carried 19 | 3 13 19 19 19 19 20 19 19 20 19 20 19 19 19 19 19 19 Final Capacity 20 | 8 20 20 20 20 20 20 20 20 20 20 20 20 20 20 20 20 5 Final Carried 20 | 6 20 19 20 20 20 20 20 20 20 20 20 20 20 20 19 20 5 Class Distribution -------------------- 39% | Scavenger-Tank 28% | Tank 10% | Trapper-Tank 10% | Mutant 7% | Gunner Dominant Class ---------------- Mutant | -10/Materials Mutant | -10/Mines Gunner | -9/Materials Tank | -9/Mines Tank | -9/Exiles Skirmisher | -8/Mines Scavenger-Tank | -8/Materials Scavenger-Tank | -7/Factory Scavenger-Tank | -7/Lower Caves Scavenger-Tank | -7/Lower Caves Scavenger-Tank | -7/Data Miner Trapper-Tank | -6/Proximity Caves Trapper-Tank | -6/Factory Scavenger-Tank | -6/Lower Caves Tank | -6/Lower Caves Tank | -6/Zion Tank | -6/Deep Caves Resources | -11 -10 -10 -9 -9 -9 -8 -8 -7 -7 -7 -7 -6 -6 -6 -6 -6 -6 ----------- Run | Yrd Mat Min Mat Min Exi Min Mat Fac Low Low Dat Pro Fac Low Low Zio Dee Matter Collected 4889 | 215 321 59 720 314 . . 594 765 142 119 . 192 384 495 299 53 217 Remotely 156 | . . . . . . . . 156 . . . . . . . . . Salvage Created 5183 | . 525 14 1099 325 . . 774 837 74 131 . 148 415 287 86 . 468 Parts 329 | . 41 6 66 22 . . 50 53 3 14 . 12 25 18 1 . 18 Haulers Intercepted 9 | . 2 . 5 . . . . 2 . . . . . . . . . Recyclers Shooed 2 | . . . . . . . . 1 . . . . 1 . . . . Parts Field Recycled . | . . . . . . . . . . . . . . . . . . Retrieved Matter . | . . . . . . . . . . . . . . . . . . Parts Self-Destructed 46 | . . . . . . . . . 3 8 . 12 . 22 1 . . Prevented 2 | . . . . . . . . . . . . 2 . . . . . Kills | -11 -10 -10 -9 -9 -9 -8 -8 -7 -7 -7 -7 -6 -6 -6 -6 -6 -6 ------- Run | Yrd Mat Min Mat Min Exi Min Mat Fac Low Low Dat Pro Fac Low Low Zio Dee Combat Hostiles Destroyed 163 | . 14 2 20 11 . . 15 17 3 8 . 6 8 6 2 . 51 Guns 80 | . 8 . 12 8 . . 13 12 . 1 . 3 8 3 . . 12 Cannons 2 | . . . . . . . . . . . . . . . . . 2 AOE 81 | . 6 2 8 3 . . 2 5 3 7 . 3 . 3 2 . 37 Classes Destroyed 20 | . 6 . 4 . . . . 2 1 1 . . . 1 1 . 4 Worker 4 | . 1 . 1 . . . . 2 . . . . . . . . . Builder 1 | . . . 1 . . . . . . . . . . . . . . Tunneler 2 | . 1 . . . . . . . . . . . 1 . . . . Hauler 9 | . 2 . 5 . . . . 2 . . . . . . . . . Recycler 5 | . . . 1 1 . . 2 1 . . . . . . . . . Minesweeper 3 | . . . . . . . . . 1 1 . 1 . . . . . Watcher 11 | . 2 . 4 . . . 1 3 . . . . 1 . . . . Swarmer 44 | . 6 2 3 9 . . 3 4 3 7 . 6 1 . . . . Grunt 37 | . 8 . 9 . . . 8 5 . . . . 3 4 . . . Brawler 2 | . . . 1 . . . 1 . . . . . . . . . . Duelist 4 | . . . . . . . . 2 . . . . 2 . . . . Sentry 13 | . . . 7 2 . . 3 1 . . . . . . . . . Specialist 2 | . . . . . . . . . . . . . . 2 . . . Hunter 2 | . . . . . . . . . . . . . . . 2 . . Programmer 7 | . . . . . . . . 5 . . . . 2 . . . . Z-Technician 1 | . . . . . . . . . . . . . . . . . 1 Z-Light 8 | . . . . . . . . . . . . . . . . . 8 Assembler 1 | . . . . . . . . . . . . . . . . . 1 Assembled 42 | . . . . . . . . . . . . . . . . . 42 Mutant 1 | . . . . . . . . . . 1 . . . . . . . Best Kill Streak 40 | . 5 2 5 3 . . 6 5 3 4 . 4 4 4 2 . 40 Combat Bots Only 39 | . 4 2 5 3 . . 4 4 3 4 . 4 3 4 2 . 39 Max Kills in Single Turn 17 | . 2 2 3 2 . . 1 3 3 3 . 3 1 2 1 . 17 Gunslinging 1 | . . . 1 . . . . . . . . . . . . . . Exploded 15 | . 2 2 3 2 . . 1 3 3 3 . 3 . 2 1 . 15 Melee . | . . . . . . . . . . . . . . . . . . Uniques/NPCs Destroyed 1 | . . . . . . . . . . . . . . . . . 1 Z-Imprinter (-6/Deep Caves) Combat | -11 -10 -10 -9 -9 -9 -8 -8 -7 -7 -7 -7 -6 -6 -6 -6 -6 -6 -------- Run | Yrd Mat Min Mat Min Exi Min Mat Fac Low Low Dat Pro Fac Low Low Zio Dee Hostile Shots Fired 668 | . 55 15 66 45 . . 71 111 2 30 . 21 40 22 15 . 175 Missed 186 | . 19 2 18 10 . . 14 44 . 9 . 4 12 7 7 . 40 Damage Taken 9468 | . 446 142 795 342 . . 878 933 25 384 . 268 713 216 134 . 4192 Core 1288 | . 109 43 76 34 . . 78 37 . 20 . 13 34 44 . . 800 Absorbed by Shields 420 | . . . . . . . . . . . . . . . . . 420 Redirected to Shielding 236 | . . . . . . . . . . . . . 61 2 . . 173 Core Remaining (%) 77 | 100 . 39 . . . 72 85 . . . . 90 . . . . . Volleys Fired 306 | . 67 7 49 19 . . 37 42 1 11 . 12 24 8 3 . 26 Largest 4 | . 2 2 4 4 . . 4 4 1 3 . 2 4 4 1 . 1 Hottest 140 | . 100 100 140 92 . . 102 92 33 71 . 51 104 106 36 . 45 Shots Fired 912 | . 130 12 165 62 . . 134 154 1 21 . 22 93 22 3 . 93 Gun 848 | . 126 10 156 60 . . 130 152 . 15 . 20 93 19 . . 67 Cannon . | . . . . . . . . . . . . . . . . . . Launcher 52 | . 4 2 9 2 . . 4 2 1 6 . 2 . 3 3 . 14 Special 12 | . . . . . . . . . . . . . . . . . 12 Kinetic 611 | . . . 122 60 . . 130 152 . 15 . 20 93 19 . . . Thermal 237 | . 126 10 34 . . . . . . . . . . . . . 67 Explosive 64 | . 4 2 9 2 . . 4 2 1 6 . 2 . 3 3 . 26 Electromagnetic . | . . . . . . . . . . . . . . . . . . Robot Hit Streak 23 | . 13 7 13 5 . . 23 20 . 13 . 6 12 6 5 . 17 Robot Miss Streak 4 | . 4 2 3 4 . . 3 4 . 2 . 3 4 3 . . 3 Penetration Max 1 | . . . . . . . . . . . . . 1 . . . . Secondary Targets 7 | . . . 1 . . . 3 2 . . . 1 . . . . . Max Gunslinging Chain 1 | . . . 1 . . . 1 1 . . . 1 . . . . . Autonomous 67 | . . . . . . . . . . . . . . . . . 67 Shots Hit Robots 604 | . 87 8 111 25 . . 84 100 4 14 . 16 67 14 3 . 71 Core Hits 375 | . 30 4 60 15 . . 35 47 4 17 . 10 33 15 4 . 101 Critical Kills 3 | . . . 2 . . . . . . . . . . 1 . . . Critical Parts Destroyed 2 | . . . 1 . . . . . . . . . 1 . . . . Critical Strikes 16 | . 7 1 5 . . . . . . . . . 1 1 . . 1 Burn 10 | . 7 1 2 . . . . . . . . . . . . . . Destroy 5 | . . . 3 . . . . . . . . . 1 1 . . . Sever 1 | . . . . . . . . . . . . . . . . . 1 Melee Attacks 35 | . . . . . . . 4 13 8 2 . 4 . 4 . . . Impact . | . . . . . . . . . . . . . . . . . . Slashing 35 | . . . . . . . 4 13 8 2 . 4 . 4 . . . Piercing . | . . . . . . . . . . . . . . . . . . Sneak Attacks 7 | . . . . . . . . 1 2 1 . 3 . . . . . Combat Hostiles . | . . . . . . . . . . . . . . . . . . Follow-up Attacks . | . . . . . . . . . . . . . . . . . . Damage Inflicted 19671 | . 1370 181 2192 634 . . 1480 2720 338 900 . 643 1288 827 247 . 6851 Guns 9189 | . 996 89 1290 385 . . 1268 1618 . 205 . 230 1288 221 . . 1599 Cannons . | . . . . . . . . . . . . . . . . . . Explosions 9515 | . 374 92 902 249 . . 212 1042 115 610 . 227 . 606 247 . 4839 Melee 554 | . . . . . . . . 60 223 85 . 186 . . . . . Ramming . | . . . . . . . . . . . . . . . . . . Kinetic 6158 | . . . 943 385 . . 1268 1618 . 205 . 230 1288 221 . . . Thermal 3031 | . 996 89 347 . . . . . . . . . . . . . 1599 Explosive 9515 | . 374 92 902 249 . . 212 1042 115 610 . 227 . 606 247 . 4839 Electromagnetic . | . . . . . . . . . . . . . . . . . . Impact . | . . . . . . . . . . . . . . . . . . Slashing 967 | . . . . . . . . 60 223 85 . 186 . . . . 413 Piercing . | . . . . . . . . . . . . . . . . . . Highest Corruption 4 | . 2 2 . . . . . 4 . . . . 1 . . . . Average Corruption 1 | . 1 2 . . . . . 1 . . . . 1 . . . . Corruption Purged 5 | . . . . . . . . 4 . . . . 1 . . . . Corruption Blocked . | . . . . . . . . . . . . . . . . . . Effects 40 | . 4 9 . . . . . 25 . . . . 2 . . . . Message Errors 10 | . . 3 . . . . . 6 . . . . 1 . . . . Matter Fused 6 | . 1 2 . . . . . 3 . . . . . . . . . Heat Flow Errors 6 | . 1 . . . . . . 5 . . . . . . . . . Energy Discharges 5 | . 1 2 . . . . . 2 . . . . . . . . . Data Loss (minor) 8 | . 1 2 . . . . . 5 . . . . . . . . . Data Loss (major) 1 | . . . . . . . . 1 . . . . . . . . . Alerts 2 | . . . . . . . . 2 . . . . . . . . . Weapon Failures 2 | . . . . . . . . 1 . . . . 1 . . . . Overload Shots . | . . . . . . . . . . . . . . . . . . Overflow Damage 516 | . 30 . 25 20 . . 5 117 85 68 . 60 . . . . 106 Projectiles . | . . . . . . . . . . . . . . . . . . Explosions 371 | . 30 . 25 20 . . 5 117 . 68 . . . . . . 106 Melee 145 | . . . . . . . . . 85 . . 60 . . . . . Knockbacks . | . . . . . . . . . . . . . . . . . . Impact . | . . . . . . . . . . . . . . . . . . Kinetic . | . . . . . . . . . . . . . . . . . . Secondary . | . . . . . . . . . . . . . . . . . . Self-Inflicted Damage 413 | . . . 113 . . . 48 . . 66 . 14 . 9 . . 163 Shots 14 | . . . 4 . . . 1 . . 2 . 1 . 1 . . 5 Rammed 1 | . 1 . . . . . . . . . . . . . . . . Targets Rammed 1 | . 1 . . . . . . . . . . . . . . . . Kicked . | . . . . . . . . . . . . . . . . . . Crushed . | . . . . . . . . . . . . . . . . . . Highest Temperature 330 | . 187 99 49 205 . . 330 246 . . . . 126 182 . . 46 Average Temperature 55 | . 63 49 18 72 . . 92 48 . . . . 42 74 . . 15 Received Heat Transfer 2044 | . 219 69 258 54 . . 486 216 . . . . 54 81 . . 607 Effects 1 | . . . . . . . 1 . . . . . . . . . . Short Circuit 1 | . . . . . . . 1 . . . . . . . . . . Siege Activations . | . . . . . . . . . . . . . . . . . . Robots Corrupted . | . . . . . . . . . . . . . . . . . . Combat Hostiles . | . . . . . . . . . . . . . . . . . . Parts Fried . | . . . . . . . . . . . . . . . . . . Impact Corruptions . | . . . . . . . . . . . . . . . . . . Robots Melted 1 | . 1 . . . . . . . . . . . . . . . . Combat Hostiles . | . . . . . . . . . . . . . . . . . . Parts Melted 8 | . 5 . 2 . . . . . . . . . . . . . 1 Heat Transferred 6881 | . 3218 333 1184 . . . . . . . . . . . . . 2146 Parts Sabotaged . | . . . . . . . . . . . . . . . . . . Parts Stolen . | . . . . . . . . . . . . . . . . . . Parts Stripped . | . . . . . . . . . . . . . . . . . . Power Chain Reactions . | . . . . . . . . . . . . . . . . . . Alert | -11 -10 -10 -9 -9 -9 -8 -8 -7 -7 -7 -7 -6 -6 -6 -6 -6 -6 ------- Run | Yrd Mat Min Mat Min Exi Min Mat Fac Low Low Dat Pro Fac Low Low Zio Dee Peak Influence 353 | . 353 126 315 131 . . 247 200 . . . . 207 . . . . Initial 100 | . . 34 . 20 . . . 100 . . . . . . . . . Average 85 | . 118 51 117 70 . . 90 91 . . . . 44 . . . . Maximum Alert Level 1 | . 1 . 1 . . . 1 1 . . . . 1 . . . . Low Security (%) 90 | 100 64 100 75 100 . 100 87 99 . . . . 95 . . . . Level 1 9 | . 35 . 24 . . . 12 . . . . . 4 . . . . Level 2 . | . . . . . . . . . . . . . . . . . . Level 3 . | . . . . . . . . . . . . . . . . . . Level 4 . | . . . . . . . . . . . . . . . . . . Level 5 . | . . . . . . . . . . . . . . . . . . High Security . | . . . . . . . . . . . . . . . . . . Max Security . | . . . . . . . . . . . . . . . . . . Squads Dispatched 21 | . 3 . 2 1 . . 8 4 . . . . 3 . . . . Investigation 2 | . 1 . . . . . 1 . . . . . . . . . . Extermination 7 | . . . . . . . . 4 . . . . 3 . . . . Reinforcement 6 | . 2 . 2 1 . . 1 . . . . . . . . . . Assault . | . . . . . . . . . . . . . . . . . . Garrison 6 | . . . . . . . 6 . . . . . . . . . . Intercept . | . . . . . . . . . . . . . . . . . . Searches Triggered . | . . . . . . . . . . . . . . . . . . Construction Impeded 1 | . . . . 1 . . . . . . . . . . . . . Haulers Reinforced . | . . . . . . . . . . . . . . . . . . Active Scanning Responses . | . . . . . . . . . . . . . . . . . . Cargo Convoy Interrupts . | . . . . . . . . . . . . . . . . . . Stealth | -11 -10 -10 -9 -9 -9 -8 -8 -7 -7 -7 -7 -6 -6 -6 -6 -6 -6 --------- Run | Yrd Mat Min Mat Min Exi Min Mat Fac Low Low Dat Pro Fac Low Low Zio Dee Distress Signals 8 | . 2 . 2 . . . 2 2 . . . . . . . . . Communications Jammed . | . . . . . . . . . . . . . . . . . . Distress Signals . | . . . . . . . . . . . . . . . . . . Times Spotted 227 | . 26 6 34 16 . . 20 30 2 8 . 7 14 8 2 . 54 Peak Tracking Total 38 | . 6 3 6 4 . . 5 6 3 4 . 4 3 4 2 . 38 Tactical Retreats 11 | . 2 1 . 2 . . 1 4 . . . . 1 . . . . Traps | -11 -10 -10 -9 -9 -9 -8 -8 -7 -7 -7 -7 -6 -6 -6 -6 -6 -6 ------- Run | Yrd Mat Min Mat Min Exi Min Mat Fac Low Low Dat Pro Fac Low Low Zio Dee Traps Triggered 10 | . 5 . 1 . . . . 2 . . . . 2 . . . . Indirectly . | . . . . . . . . . . . . . . . . . . Trap Hack Attempts . | . . . . . . . . . . . . . . . . . . Triggered . | . . . . . . . . . . . . . . . . . . Disarmed . | . . . . . . . . . . . . . . . . . . Reprogrammed . | . . . . . . . . . . . . . . . . . . Reused 1 | . . . . . . . . . . . . . 1 . . . . Traps Extracted . | . . . . . . . . . . . . . . . . . . Installed 2 | . . . . . . . . . . . . . 1 1 . . . Triggered 3 | . . . . 1 . . . . . . . 1 1 . . . . Most Traps Carried 6 | . . . . . . . . . . . . 6 6 5 4 4 4 Objects Rigged 3 | . . . . . . . . 3 . . . . . . . . . Exploded 1 | . . . . . . . . 1 . . . . . . . . . Machines | -11 -10 -10 -9 -9 -9 -8 -8 -7 -7 -7 -7 -6 -6 -6 -6 -6 -6 ---------- Run | Yrd Mat Min Mat Min Exi Min Mat Fac Low Low Dat Pro Fac Low Low Zio Dee Machines Disabled 11 | . 1 1 1 . . . 2 2 . 1 . . . 1 . . 2 Max in Single Turn 2 | . 1 . 1 . . . 1 2 . 1 . . . 1 . . 1 Garrison Access 1 | . . . . . . . . 1 . . . . . . . . . Machines Repaired . | . . . . . . . . . . . . . . . . . . Machines Dismantled . | . . . . . . . . . . . . . . . . . . Machines Sabotaged . | . . . . . . . . . . . . . . . . . . Overloaded Fab Kills . | . . . . . . . . . . . . . . . . . . Hacking | -11 -10 -10 -9 -9 -9 -8 -8 -7 -7 -7 -7 -6 -6 -6 -6 -6 -6 --------- Run | Yrd Mat Min Mat Min Exi Min Mat Fac Low Low Dat Pro Fac Low Low Zio Dee Machines Accessed 37 | . 6 . 8 . 1 . 3 10 . 1 4 . 4 . . . . Terminals 27 | . 6 . 8 . . . 2 8 . . . . 3 . . . . Fabricators 1 | . . . . . . . . 1 . . . . . . . . . Repair Stations . | . . . . . . . . . . . . . . . . . . Recycling Units . | . . . . . . . . . . . . . . . . . . Scanalyzers . | . . . . . . . . . . . . . . . . . . Garrison Access 3 | . . . . . . . 1 1 . . . . 1 . . . . Total Hacks 110 | . 23 . 22 . 1 . 6 24 . 1 27 . 6 . . . . Successful 67 | . 13 . 11 . 1 . 2 10 . 1 27 . 2 . . . . Failed 43 | . 10 . 11 . . . 4 14 . . . . 4 . . . . Catastrophic 10 | . 2 . 3 . . . 1 2 . . . . 2 . . . . Database Lockouts . | . . . . . . . . . . . . . . . . . . Manual 59 | . 16 . 6 . 3 . 3 16 . . . . 4 1 . 10 . Terminals 74 | . 23 . 22 . . . 4 20 . . . . 5 . . . . Fabricators 2 | . . . . . . . . 2 . . . . . . . . . Repair Stations . | . . . . . . . . . . . . . . . . . . Recycling Units . | . . . . . . . . . . . . . . . . . . Scanalyzers . | . . . . . . . . . . . . . . . . . . Garrison Access 5 | . . . . . . . 2 2 . . . . 1 . . . . Terminal Hacks 49 | . 9 . 8 . 1 . . 3 . 1 27 . . . . . . Record 9 | . . . . . . . . . . . 9 . . . . . . Part Schematic 11 | . . . . . . . . . . . 11 . . . . . . Robot Schematic 4 | . . . . . . . . . . . 4 . . . . . . Prototype ID Bank 10 | . 4 . 2 . . . . 1 . . 3 . . . . . . Open Door 1 | . . . . . . . . . . 1 . . . . . . . Branch Access Points 2 | . 1 . 1 . . . . . . . . . . . . . . Terminal Index 1 | . . . . . . . . 1 . . . . . . . . . Alert Level 1 | . 1 . . . . . . . . . . . . . . . . Unreport Threat 5 | . 2 . 2 . . . . 1 . . . . . . . . . Locate Traps 2 | . . . 2 . . . . . . . . . . . . . . Hauler Manifests 2 | . 1 . 1 . . . . . . . . . . . . . . Derelict Proto ID Bank 1 | . . . . . 1 . . . . . . . . . . . . Fabricator Hacks 1 | . . . . . . . . 1 . . . . . . . . . Network Status 1 | . . . . . . . . 1 . . . . . . . . . Repair Station Hacks . | . . . . . . . . . . . . . . . . . . Recycling Unit Hacks . | . . . . . . . . . . . . . . . . . . Scanalyzer . | . . . . . . . . . . . . . . . . . . Garrison Access Hacks 1 | . . . . . . . . 1 . . . . . . . . . Seal Access 1 | . . . . . . . . 1 . . . . . . . . . Unauthorized Hacks 16 | . 4 . 3 . . . 2 5 . . . . 2 . . . . Terminals 16 | . 4 . 3 . . . 2 5 . . . . 2 . . . . Assimilate 4 | . 1 . 1 . . . . 2 . . . . . . . . . Botnet 10 | . 3 . 2 . . . 2 2 . . . . 1 . . . . Detonate 1 | . . . . . . . . 1 . . . . . . . . . Disrupt 1 | . . . . . . . . . . . . . 1 . . . . Fabricators . | . . . . . . . . . . . . . . . . . . Repair Stations . | . . . . . . . . . . . . . . . . . . Recycling Units . | . . . . . . . . . . . . . . . . . . Scanalyzers . | . . . . . . . . . . . . . . . . . . Garrison Access . | . . . . . . . . . . . . . . . . . . Data Cores Recovered . | . . . . . . . . . . . . . . . . . . Used . | . . . . . . . . . . . . . . . . . . Hacking Detections 29 | . 6 . 8 . . . 3 8 . . . . 4 . . . . Full Trace Events 2 | . . . 1 . . . 1 . . . . . . . . . . Feedback Events . | . . . . . . . . . . . . . . . . . . Feedback Blocked . | . . . . . . . . . . . . . . . . . . Robot Schematics Acquired 7 | . . . . . . . . . . . 4 . . . . 3 . Robots Built . | . . . . . . . . . . . . . . . . . . Authchips . | . . . . . . . . . . . . . . . . . . Time . | . . . . . . . . . . . . . . . . . . Total Robot Build Rating . | . . . . . . . . . . . . . . . . . . Part Schematics Acquired 23 | . . . . . . . . . . . 11 . . . . 12 . Parts Built . | . . . . . . . . . . . . . . . . . . Authchips . | . . . . . . . . . . . . . . . . . . Time . | . . . . . . . . . . . . . . . . . . Total Part Build Rating . | . . . . . . . . . . . . . . . . . . Parts Repaired . | . . . . . . . . . . . . . . . . . . Time . | . . . . . . . . . . . . . . . . . . Parts Recycled . | . . . . . . . . . . . . . . . . . . Recycled Matter . | . . . . . . . . . . . . . . . . . . Retrieved Matter . | . . . . . . . . . . . . . . . . . . Retrieved Components . | . . . . . . . . . . . . . . . . . . Parts Scanalyzed . | . . . . . . . . . . . . . . . . . . Part Schematics Acquired . | . . . . . . . . . . . . . . . . . . Parts Damaged . | . . . . . . . . . . . . . . . . . . Bothacking | -11 -10 -10 -9 -9 -9 -8 -8 -7 -7 -7 -7 -6 -6 -6 -6 -6 -6 ------------ Run | Yrd Mat Min Mat Min Exi Min Mat Fac Low Low Dat Pro Fac Low Low Zio Dee Used RIF Installer . | . . . . . . . . . . . . . . . . . . Robots Hacked . | . . . . . . . . . . . . . . . . . . Non-combat . | . . . . . . . . . . . . . . . . . . Combat . | . . . . . . . . . . . . . . . . . . Robot Hacks Applied . | . . . . . . . . . . . . . . . . . . Relay Couplers Released . | . . . . . . . . . . . . . . . . . . Fabnet Peak Effective % . | . . . . . . . . . . . . . . . . . . Robots Rewired . | . . . . . . . . . . . . . . . . . . Allies Hacked . | . . . . . . . . . . . . . . . . . . Hacks Repelled . | . . . . . . . . . . . . . . . . . . Allies | -11 -10 -10 -9 -9 -9 -8 -8 -7 -7 -7 -7 -6 -6 -6 -6 -6 -6 -------- Run | Yrd Mat Min Mat Min Exi Min Mat Fac Low Low Dat Pro Fac Low Low Zio Dee Total Allies 8 | . . 5 . 1 . . . 2 . . . . . . . . . Largest Group 5 | . . 5 5 1 . . . 1 1 1 . . . . . . . Highest-Rated Group 78 | . . 78 78 31 . . . 10 10 10 . . . . . . . Highest-Rated Ally 31 | . . 31 31 31 . . . 10 10 10 . . . . . . . Total Orders 9 | . . . . . . . . 2 4 3 . . . . . . . STAY 5 | . . . . . . . . 1 2 2 . . . . . . . FOLLOW 4 | . . . . . . . . 1 2 1 . . . . . . . Ally Attacks 64 | . . 10 49 5 . . . . . . . . . . . . . Total Damage 658 | . . 57 516 85 . . . . . . . . . . . . . Kills 11 | . . 3 7 1 . . . . . . . . . . . . . Allies Corrupted . | . . . . . . . . . . . . . . . . . . Allies Melted . | . . . . . . . . . . . . . . . . . . Intel | -11 -10 -10 -9 -9 -9 -8 -8 -7 -7 -7 -7 -6 -6 -6 -6 -6 -6 ------- Run | Yrd Mat Min Mat Min Exi Min Mat Fac Low Low Dat Pro Fac Low Low Zio Dee Robot Analysis Total . | . . . . . . . . . . . . . . . . . . Derelict Logs Recovered 12 | . . 1 . 2 . . . . 1 1 . 2 . 1 2 2 . Drone Launches . | . . . . . . . . . . . . . . . . . . Drone Recoveries . | . . . . . . . . . . . . . . . . . . Exploration | -11 -10 -10 -9 -9 -9 -8 -8 -7 -7 -7 -7 -6 -6 -6 -6 -6 -6 ------------- Run | Yrd Mat Min Mat Min Exi Min Mat Fac Low Low Dat Pro Fac Low Low Zio Dee Turns Passed 21386 | 46 1137 800 1615 1357 443 142 1177 3388 2122 1142 98 1816 1290 941 1153 1708 1011 Spaces Moved 12482 | 39 778 445 591 757 267 87 424 1833 1547 775 76 1036 721 584 725 1157 640 Core 5 | 1 . . . . . . . . . . . . . . . . 4 Treads 2159 | . . 143 475 . . . 11 1452 . 71 . . . . . . 7 Legs . | . . . . . . . . . . . . . . . . . . Wheels 10318 | 38 778 302 116 757 267 87 413 381 1547 704 76 1036 721 584 725 1157 629 Hover . | . . . . . . . . . . . . . . . . . . Flight . | . . . . . . . . . . . . . . . . . . Fastest Speed 50 | 50 80 140 165 165 165 165 165 130 130 130 130 130 130 130 130 130 50 Average Speed 149 | 79 113 173 225 165 165 165 176 156 130 140 130 144 136 144 144 144 144 Slowest Speed 320 | 80 140 240 320 165 165 165 240 243 130 250 130 145 145 145 145 145 240 Overloaded Moves . | . . . . . . . . . . . . . . . . . . Propulsion Burnouts . | . . . . . . . . . . . . . . . . . . Robots Hopped . | . . . . . . . . . . . . . . . . . . Cave-ins Triggered . | . . . . . . . . . . . . . . . . . . Exploration Rate (%) 66 | 3 98 94 63 94 69 19 31 46 99 86 68 96 13 68 79 86 84 Regions Visited 17 Branch Regions 12 Pre-discovered Areas 2 | . . . . . . . . . . . 1 . . . . 1 . Known Exits Taken 6 | . 1 . 1 . . 1 . 1 . . . . . . 1 1 . Unknown Exits Taken 11 | 1 . 1 . 1 1 . 1 . 1 1 1 1 1 1 . . . Scrap Searched 20 | . . 2 . 3 . . . . 1 3 . 5 . 1 2 3 . Spaces Dug 158 | . . . 7 22 . . 37 12 13 28 . 25 . 3 . . 11 Terrain Destroyed 466 | . 24 25 51 22 . . 41 38 13 80 . 25 1 41 24 . 81 Melee 23 | . . . . . . . 4 12 3 . . 1 . 3 . . . Projectile 3 | . . . . . . . . . . . . . 1 . . . 2 AOE 440 | . 24 25 51 22 . . 37 26 10 80 . 24 . 38 24 . 79 Terrain Rammed . | . . . . . . . . . . . . . . . . . . Walls Destroyed . | . . . . . . . . . . . . . . . . . . Machines Disabled . | . . . . . . . . . . . . . . . . . . Actions | -11 -10 -10 -9 -9 -9 -8 -8 -7 -7 -7 -7 -6 -6 -6 -6 -6 -6 --------- Run | Yrd Mat Min Mat Min Exi Min Mat Fac Low Low Dat Pro Fac Low Low Zio Dee Total 14591 | 50 903 462 796 828 271 86 768 2232 1648 808 75 1326 964 661 825 1192 696 Wait 1377 | . 22 6 87 35 . . 253 295 91 7 . 265 176 42 92 4 2 Move 12465 | 38 777 444 590 756 266 86 423 1832 1546 774 75 1035 720 583 724 1156 640 Hop . | . . . . . . . . . . . . . . . . . . Pick Up 100 | 6 15 1 21 5 2 . 11 8 . 3 . 3 7 5 1 8 4 Fast Attach 29 | 6 1 . 4 . . . 1 5 . 1 . . 2 1 . 5 3 Attach 39 | . 1 1 3 1 . . 4 4 . . . 1 4 2 1 2 15 Detach 2 | . . . . . . . . . . . . . . . . 1 1 Swap 112 | . 12 2 15 5 . . 19 21 2 4 . 3 15 7 3 3 1 Drop 115 | . 7 1 27 7 3 . 16 12 . 6 . 3 7 8 1 13 4 Fire 306 | . 67 7 49 19 . . 37 42 1 11 . 12 24 8 3 . 26 Melee 35 | . . . . . . . 4 13 8 2 . 4 . 4 . . . Ram 1 | . 1 . . . . . . . . . . . . . . . . Kick . | . . . . . . . . . . . . . . . . . . Crush . | . . . . . . . . . . . . . . . . . . Escape Stasis 8 | . . . . . . . . . . . . . 8 . . . . Rewire . | . . . . . . . . . . . . . . . . . . Trap 2 | . . . . . . . . . . . . . 1 1 . . . Miscellaneous . | . . . . . . . . . . . . . . . . . . Route ------- -11/Scrapyard -10/Materials (discovered 4 exits: *Mat x3 / *Min) -10/Mines (discovered 2 exits: *Mat x2) -9/Materials (discovered 2 exits: *Mat / *Min) -9/Mines (discovered 3 exits: *Mat x2 / *Exi) -9/Exiles -8/Mines -8/Materials -7/Factory (discovered 2 exits: *Low x2) -7/Lower Caves -7/Lower Caves (discovered 2 exits: *Fac / *Dat) -7/Data Miner -6/Proximity Caves -6/Factory -6/Lower Caves -6/Lower Caves (discovered 2 exits: [*Fac] / *Zio) -6/Zion (discovered 2 exits: *Dee / [*Pro]) -6/Deep Caves (discovered 1 exit: [*Pro]) History --------- Turn | Location | Event 25 | -11/Scrapyard | Discovered new exit (range 15) 47 | -11/Scrapyard | Entered Materials 63 | -10/Materials | Identified exit to Mines 205 | -10/Materials | Discovered new exit (range 12) 317 | -10/Materials | Discovered new exit (range 5) 327 | -10/Materials | Build established: Mutant 806 | -10/Materials | Discovered new exit (range 4) 1184 | -10/Materials | Entered Mines 1352 | -10/Mines | Received a Rocket Launcher from a helpful Derelict 1485 | -10/Mines | Discovered new exit (range 5) 1558 | -10/Mines | Discovered new exit (range 15) 1560 | -10/Mines | Assisted by bots powering up and referring to "LRC-V3" 1629 | -10/Mines | Core integrity fell below 50% 1873 | -10/Mines | Learned 8 Materials zone layouts 1984 | -10/Mines | Entered Materials 1984 | -9/Materials | Accompanied by 5 allies 1984 | -9/Materials | Evolved 2 slots: Weapon x2 1985 | -9/Materials | Identified exit to Materials 1989 | -9/Materials | Led the pair of lost Derelicts to an unsafe place 2030 | -9/Materials | Identified exit to Mines 2252 | -9/Materials | Lost 4 allies 2486 | -9/Materials | Build established: Gunner 3599 | -9/Materials | Entered Mines 3669 | -9/Mines | Received a Mining Laser from a helpful Derelict 3715 | -9/Mines | Discovered exit to Materials (range 7) 3833 | -9/Mines | Build established: Tank 4124 | -9/Mines | Deemed a non-threat by the Exiles lab entrance 4126 | -9/Mines | Discovered new exit (range 5) 4256 | -9/Mines | Discovered exit to Materials (range 10) 4390 | -9/Mines | A weapon hastily lodged in a ceiling crevice suddenly fell to the ground 4956 | -9/Mines | Entered Exiles 4999 | -9/Exiles | Met 8R-AWN 5026 | -9/Exiles | Met EX-HEX 5075 | -9/Exiles | Met EX-BIN 5095 | -9/Exiles | Aligned with FarCom system 5097 | -9/Exiles | Given EX-Vault access code 5135 | -9/Exiles | Opened EX-Vault 5150 | -9/Exiles | Found AWS/Thermal 5188 | -9/Exiles | Warned to stay clear of 0b10 Research branches 5242 | -9/Exiles | Met EX-DEC 5381 | -9/Exiles | Discovered new exit (range 12) 5399 | -9/Exiles | Left Exiles lab with AWS/Thermal 5399 | -9/Exiles | Entered Mines 5446 | -8/Mines | Discovered exit to Materials (range 4) 5541 | -8/Mines | Entered Materials 5541 | -8/Materials | Evolved 2 slots: Propulsion x1, Utility x1 5880 | -8/Materials | Garrison activated, responded to threat 6249 | -8/Materials | Build established: Scavenger-Tank 6491 | -8/Materials | Garrison activated, responded to threat 6674 | -8/Materials | Discovered new exit (range 5) 6718 | -8/Materials | Entered Factory 6718 | -7/Factory | Evolved 2 slots: Propulsion x1, Utility x1 6719 | -7/Factory | Identified exit to Lower Caves 10092 | -7/Factory | Discovered exit to Lower Caves (range 7) 10106 | -7/Factory | Entered Lower Caves 10106 | -7/Lower Caves | Accompanied by 1 ally 10501 | -7/Lower Caves | Learned Factory garrison access intel 11661 | -7/Lower Caves | Discovered new exit (range 15) 12228 | -7/Lower Caves | Entered another Lower Caves area 12228 | -7/Lower Caves | Accompanied by 1 ally 12428 | -7/Lower Caves | Discovered new exit (range 9) 12577 | -7/Lower Caves | Encountered a Warlord checkpoint 12743 | -7/Lower Caves | Attacked by a delusional Derelict stockpiling parts 13324 | -7/Lower Caves | Discovered new exit (range 7) 13370 | -7/Lower Caves | Entered Data Miner 13370 | -7/Data Miner | Discovered new exit (range 6) 13395 | -7/Data Miner | Met Data Miner 13426 | -7/Data Miner | Learned location of Section 7 (-2) 13426 | -7/Data Miner | Acquired the access code to Warlord's prototype stash 13438 | -7/Data Miner | Received God Mode back door access code from Data Miner 13468 | -7/Data Miner | Entered Proximity Caves 13749 | -6/Proximity Caves | Learned Factory garrison access intel 14080 | -6/Proximity Caves | Build established: Trapper-Tank 15075 | -6/Proximity Caves | Discovered new exit (range 11) 15284 | -6/Proximity Caves | Entered Factory 15284 | -6/Factory | Evolved 2 slots: Utility x2 15285 | -6/Factory | Loaded intel: 4 garrison access locations 15644 | -6/Factory | Discovered new exit (range 15) 16370 | -6/Factory | Build established: Scavenger-Skirmisher 16574 | -6/Factory | Entered Lower Caves 16588 | -6/Lower Caves | Encountered a Warlord checkpoint 16865 | -6/Lower Caves | Build established: Scavenger-Tank 17063 | -6/Lower Caves | Acquired the password to a Derelict Tinkerer's latest research 17073 | -6/Lower Caves | Found Prototype Special Weapon 17073 | -6/Lower Caves | Identified Molecular Deconstructor 17161 | -6/Lower Caves | Caught by Unaware searching for contraband prototypes 17367 | -6/Lower Caves | Learned Factory trap positions 17371 | -6/Lower Caves | Build established: Tank 17465 | -6/Lower Caves | Discovered new exit (range 9) 17502 | -6/Lower Caves | Spotted B-75 Beast 17515 | -6/Lower Caves | Entered another Lower Caves area 17604 | -6/Lower Caves | Discovered new exit (range 8) 18389 | -6/Lower Caves | Identified exit to Zion 18668 | -6/Lower Caves | Entered Zion 18697 | -6/Zion | Acquired unknown access codes intercepted by a Zionite 18755 | -6/Zion | Given the Hacking Drone Bay 18755 | -6/Zion | Found Prototype Device 18767 | -6/Zion | Discovered new exit (range 10) 19327 | -6/Zion | Identified exit to Deep Caves 19567 | -6/Zion | Found Prototype Special Weapon 19567 | -6/Zion | Identified RU-N14's Throwing Claymores 19579 | -6/Zion | Found RU-N14's Throwing Claymores 19582 | -6/Zion | Found RU-N14's Throwing Claymores 19584 | -6/Zion | Found RU-N14's Throwing Claymores 19660 | -6/Zion | Found Rocket Array 19775 | -6/Zion | Build established: Gunner 20075 | -6/Zion | Opened final containment barrier to the Deep Caves 20092 | -6/Zion | Build established: Tank 20109 | -6/Zion | Saw the warning signs outside the Deep Caves entrance 20376 | -6/Zion | Entered Deep Caves 20552 | -6/Deep Caves | Attacked by Z-Imprinter 20560 | -6/Deep Caves | Destroyed Z-Imprinter 20693 | -6/Deep Caves | Found Prototype Protection 21243 | -6/Deep Caves | Discovered new exit (range 6) 21268 | -6/Deep Caves | Spotted AG-43587 21304 | -6/Deep Caves | Spotted AG-17918 21324 | -6/Deep Caves | Triggered Deep Caves wall 21324 | -6/Deep Caves | Spotted AS-51237 21324 | -6/Deep Caves | Spotted AS-96801 21337 | -6/Deep Caves | Destroyed AS-51237 21340 | -6/Deep Caves | Identified Zio. Weapon Casing 21347 | -6/Deep Caves | Core integrity fell below 50% 21358 | -6/Deep Caves | Destroyed 39 combat bots 21370 | -6/Deep Caves | Core integrity fell below 20% 21373 | -6/Deep Caves | Exposed GOLEM chamber 21378 | -6/Deep Caves | Identified Hacking Drone Bay 21384 | -6/Deep Caves | Released all parts (9) 21387 | -6/Deep Caves | Destroyed by AG-43587 with Assembled Focal Cannon Last Messages --------------- 21373_ Wall Chamber breached. 21373_ A GOLEM Unit tumbles out of the Wall Chamber. 21375_ Zio. Weapon Casing destroyed. 21375_ RU-N14's Throwing Claymores expended. 21375_ A GOLEM Unit tumbles out of the Wall Chamber. 21377_ Identified Zio. Laser-S. 21378_ Identified Hacking Drone Bay. 21381_ Imp. Medium Treads destroyed. 21384_ GOLEM Unit springs to life. 21384_ Released Zio. Laser-S. 21384_ Released Hacking Drone Bay. 21384_ Released Adv. Targeting Computer. 21384_ Released Enh. Optical Array. 21384_ Released Hcp. Storage Unit. 21384_ Released AWS/Thermal. 21384_ Released Imp. Medium Treads. 21384_ Released Mak. Light Armor Plating. 21384_ Released Fission Core. 21384_ Dropped Matter Compressor. 21385_ Acquired Zio. Laser-S. Map ----- +----------------------------------------------------+ | | | | | | | | | | | | | | | | | | | ?????????"#####???????????????????????????????? | | ????????? ??????????????????????????????? | | ?????????? ??????????????????????????????? | | ????????""" ????????????????????????####?? | | ????????" ####???????????????###### ##? | | ????????" # # #??????????????# ## | | ????????"" # # #????????????### ## | | ????????" # ####????????#### ## | | ????????"" # ## #??????### ### | | ????????" ## #?????## #### | | ????????""" ;# #?????# #?#### | | ????????" #; #?????# #????? | | ????????" ;!#####?## "" #????? | | ????????" G !! [=#??## " #????? | | ????????# *[!###???# ###???? | | ??????#G!! !##?????# ### ##### | | ??????#!!" @###??????# ## | | ?????????" h #??????# ## | | ?????????" ;####?????# ## | | ????????"" * ### #?????# ### | | ??????### "## ####??# #?### | | ???"""" " #??# #???## | | ??" * = G ####??# #????# | | ??" * ###??# #????# | | ??" #??# #????## | | ??" * [ ! ###??# #?????## | | ??" ##???# ######?## | | ??" [ M #???# #### ## | | ??" "#?## #? | | ??""""" [[ ##?# #? | | ??????### ! = #??# #? | | ????????"" ! #??# ##? | | ?????????" = #??# ### ##?? | | ?????????" ! = #??# ########## | | ?????????" [= ! ##?# ### # <# | | ????????"" ! #?## # # | | ????????# #??# # #### | | ????????" #??## ## ###?## | | ????????" ###### # ### | | ????????" [ ! | | ????????""" ! | +----------------------------------------------------+ Best States ------------- Heat Dissipation 53 Energy Generation 27 Energy Capacity 800 Matter Stores 300 Matter Capacity 300 Sight Range 22 Terrain Scan Density 10 Armor Coverage 675 Core Shielding 20 Propulsion Shielding 66 Utility Shielding 66 Weapon Shielding 100 Evasion (%) 44 Targeting Accuracy 8 Recoil Reduction 4 Kinecelleration 30 Trap Extractor Capacity 6 Item Schematics ----------------- Combat Drone Bay | -7/Data Miner | Free Lgt. Regenerative Plating | -7/Data Miner | Free Biomechanical Wings | -7/Data Miner | Free Exp. Targeting Computer | -7/Data Miner | Free Imp. Lightning Gun | -7/Data Miner | Free Hvy. Treads | -7/Data Miner | Free Recoil Nullifier | -7/Data Miner | Free Mass Driver | -7/Data Miner | Free Neutrino Core | -7/Data Miner | Free Imp. Gyrokinetic Inverter | -7/Data Miner | Free Adv. Reaction Control System | -7/Data Miner | Free Fission Core | -6/Zion | Archive Mak. Hover Unit | -6/Zion | Archive Tesla Rifle | -6/Zion | Archive Imp. Reaction Control System | -6/Zion | Archive HERF Cannon | -6/Zion | Archive Energy Well | -6/Zion | Archive Hyp. Gauss Cannon | -6/Zion | Archive Impulse Thruster | -6/Zion | Archive Imp. System Restoration Module | -6/Zion | Archive Power Sword | -6/Zion | Archive Field Propulsion Drive | -6/Zion | Archive Lgt. Fission Core | -6/Zion | Archive Robot Schematics ------------------ D-53 Grenadier | -7/Data Miner | Free A-15 Conveyor | -7/Data Miner | Free R-10 Processor | -7/Data Miner | Free G-50 Soldier | -7/Data Miner | Free A-02 Transporter | -6/Zion | Archive L-41 Fighter | -6/Zion | Archive K-01 Serf | -6/Zion | Archive Fabricated ------------ Nothing Alien Tech Used ----------------- None Achievements -------------- Boltbath That's One Door That Should Stay Closed Challenges ------------ None Game ------ Seed SubdwellerMinesnifferSabre Manual? 0 Play Time 03:14:39 Cumulative 172.5 hours Start 2024.05.24 @ 12:34:45 End 2024.05.24 @ 23:04:34 Sessions 5 Manual Loads 0 Difficulty Rogue Special Mode None Game No. 104 Rogue 104 Adventurer 0 Explorer 0 Win Type - Total 4 Types 4/0/0/0/0/0/0/0/0 Lore% 51 Gallery% 59 Achievement% 44 Wizard Run 0 Options --------- Layout 0 ASCII 0 Keyboard 0 Movement Numpad Keybinds 0 Fullscreen 1 Font 24/Smallcaps Map View 76x50 Zoom Use 0% Tactical HUD 1 Map Filters NONE Filters NONE Steam 1 RUN: aff3c26b-f7a6-46f8-93ee-d282b104068c